[Event "32nd NATO Chess Championship"]
[Site "Tartu, Estonia"]
[Date "2022.07.01"]
[Round "7.10"]
[White "Cheung, Jan"]
[Black "Onley, David E"]
[Result "0-1"]
[TimeControl "90 min + 30 sec increment from move one"]
[WhiteFideId "1010735"]
[BlackFideId "419311"]
[WhiteElo "1964"]
[BlackElo "2083"]

1. d4 {[%clk 01:30:56]} {[%emt 00:00:03]} Nf6 {[%clk 01:30:54]} {[%emt
00:00:06]} 2. c4 {[%clk 01:31:20]} {[%emt 00:00:07]} g6 {[%clk 01:31:15]}
{[%emt 00:00:09]} 3. Nc3 {[%clk 01:31:36]} {[%emt 00:00:14]} Bg7 {[%clk
01:31:37]} {[%emt 00:00:08]} 4. e4 {[%clk 01:32:00]} {[%emt 00:00:06]} d6
{[%clk 01:31:59]} {[%emt 00:00:07]} 5. Nf3 {[%clk 01:32:25]} {[%emt 00:00:06]}
O-O {[%clk 01:32:22]} {[%emt 00:00:07]} 6. Be2 {[%emt 00:00:11]} e5 {[%emt
00:01:03]} 7. d5 {[%clk 01:25:39]} {[%emt 00:06:02]} a5 {[%clk 01:31:45]}
{[%emt 00:01:07]} 8. Bg5 {[%clk 01:25:54]} {[%emt 00:00:15]} h6 {[%clk
01:31:51]} {[%emt 00:00:24]} 9. Be3 {[%clk 01:25:03]} {[%emt 00:01:21]} Na6
{[%clk 01:29:51]} {[%emt 00:02:30]} 10. Nd2 {[%clk 01:25:16]} {[%emt 00:00:17]}
Nc5 {[%clk 01:27:58]} {[%emt 00:02:22]} 11. g4 {[%clk 01:21:15]} {[%emt
00:04:32]} Ne8 {[%clk 01:22:05]} {[%emt 00:06:23]} 12. h4 {[%clk 01:16:55]}
{[%emt 00:04:49]} f5 {[%clk 01:16:19]} {[%emt 00:06:16]} 13. gxf5 {[%clk
01:10:09]} {[%emt 00:07:17]} gxf5 {[%clk 01:16:24]} {[%emt 00:00:24]} 14. f3
{[%clk 01:09:29]} {[%emt 00:01:11]} f4 {[%clk 01:11:22]} {[%emt 00:05:31]} 15.
Bf2 {[%clk 01:09:44]} {[%emt 00:00:16]} Nf6 {[%clk 01:08:04]} {[%emt 00:03:48]}
16. Qc2 {[%clk 01:07:13]} {[%emt 00:03:01]} Nh5 {[%clk 01:07:27]} {[%emt
00:01:06]} 17. O-O-O {[%clk 01:07:03]} {[%emt 00:00:39]} Bd7 {[%clk 01:02:10]}
{[%emt 00:05:49]} 18. Rdg1 {[%clk 01:04:29]} {[%emt 00:03:04]} Kh7 {[%clk
01:00:53]} {[%emt 00:01:46]} 19. Kb1 {[%clk 01:03:07]} {[%emt 00:01:52]} Bf6
{[%clk 00:56:41]} {[%emt 00:04:42]} 20. Nb3 {[%clk 00:54:19]} {[%emt 00:09:18]}
Nxb3 {[%clk 00:52:58]} {[%emt 00:04:13]} 21. Qxb3 {[%clk 00:53:53]} {[%emt
00:00:57]} b6 {[%clk 00:51:42]} {[%emt 00:01:46]} 22. Qd1 {[%clk 00:51:14]}
{[%emt 00:03:09]} Qe7 {[%clk 00:43:25]} {[%emt 00:08:46]} 23. Qe1 {[%clk
00:47:38]} {[%emt 00:04:06]} Rae8 {[%clk 00:40:02]} {[%emt 00:03:53]} 24. Nb5
{[%clk 00:44:45]} {[%emt 00:03:24]} Qd8 {[%clk 00:38:15]} {[%emt 00:02:17]} 25.
b3 {[%clk 00:36:52]} {[%emt 00:08:23]} Rg8 {[%clk 00:37:05]} {[%emt 00:01:39]}
26. a3 {[%clk 00:33:59]} {[%emt 00:03:23]} Rxg1 {[%clk 00:30:04]} {[%emt
00:07:32]} 27. Rxg1 {[%clk 00:34:17]} {[%emt 00:00:12]} Rg8 {[%clk 00:29:39]}
{[%emt 00:00:55]} 28. Rxg8 {[%clk 00:34:32]} {[%emt 00:00:14]} Kxg8 {[%clk
00:29:56]} {[%emt 00:00:14]} 29. Bf1 {[%clk 00:30:41]} {[%emt 00:04:21]} Kh7
{[%clk 00:29:09]} {[%emt 00:01:17]} 30. Kb2 {[%clk 00:30:39]} {[%emt 00:00:32]}
Ng3 {[%clk 00:27:49]} {[%emt 00:01:49]} 31. Bxg3 {[%clk 00:28:51]} {[%emt
00:02:19]} fxg3 {[%clk 00:28:13]} {[%emt 00:00:06]} 32. Qxg3 {[%clk 00:29:05]}
{[%emt 00:00:16]} Bxh4 {[%clk 00:28:22]} {[%emt 00:00:20]} 33. Qh2 {[%clk
00:25:50]} {[%emt 00:03:46]} Bg5 {[%clk 00:26:18]} {[%emt 00:02:34]} 34. Bh3
{[%clk 00:24:59]} {[%emt 00:01:21]} Bf4 {[%clk 00:24:27]} {[%emt 00:02:21]} 35.
Qg2 {[%clk 00:25:14]} {[%emt 00:00:15]} Bg5 {[%clk 00:19:10]} {[%emt 00:05:46]}
36. Kc2 {[%clk 00:17:32]} {[%emt 00:08:13]} Qc8 {[%clk 00:13:41]} {[%emt
00:05:58]} 37. Bg4 {[%clk 00:14:44]} {[%emt 00:03:18]} Kg6 {[%clk 00:10:45]}
{[%emt 00:03:26]} 38. Kd3 {[%clk 00:13:50]} {[%emt 00:01:24]} h5 {[%clk
00:10:09]} {[%emt 00:01:07]} 39. Bxd7 {[%clk 00:11:46]} {[%emt 00:02:34]} Qxd7
{[%clk 00:10:31]} {[%emt 00:00:07]} 40. b4 {[%clk 00:10:33]} {[%emt 00:01:44]}
axb4 {[%clk 00:10:43]} {[%emt 00:00:18]} 41. axb4 {[%clk 00:11:00]} {[%emt
00:00:03]} h4 {[%clk 00:10:39]} {[%emt 00:00:34]} 42. Nc3 {[%clk 00:09:23]}
{[%emt 00:02:07]} h3 {[%clk 00:07:22]} {[%emt 00:03:46]} 43. Qg1 {[%clk
00:07:54]} {[%emt 00:02:00]} Kf6 {[%clk 00:07:23]} {[%emt 00:00:29]} 44. Ne2
{[%clk 00:07:16]} {[%emt 00:01:08]} Qa4 {[%clk 00:06:02]} {[%emt 00:01:50]} 45.
Qg3 {[%clk 00:06:11]} {[%emt 00:01:36]} Qa2 {[%clk 00:05:09]} {[%emt 00:01:23]}
46. f4 {[%clk 00:05:55]} {[%emt 00:00:46]} exf4 {[%clk 00:03:13]} {[%emt
00:02:26]} 47. Qxh3 {[%clk 00:05:41]} {[%emt 00:00:43]} Qb1+ {[%clk 00:02:50]}
{[%emt 00:00:53]} 48. Kc3 {[%clk 00:05:53]} {[%emt 00:00:17]} Qxe4 {[%clk
00:02:12]} {[%emt 00:01:09]} 49. Qh8+ {[%clk 00:04:54]} {[%emt 00:01:29]} Kf7
{[%clk 00:02:30]} {[%emt 00:00:11]} 50. Qh5+ {[%clk 00:04:00]} {[%emt
00:01:25]} Qg6 {[%clk 00:02:32]} {[%emt 00:00:28]} 51. Qxg6+ {[%clk 00:03:47]}
{[%emt 00:00:43]} Kxg6 {[%clk 00:02:58]} {[%emt 00:00:05]} 52. Ng1 {[%clk
00:03:45]} {[%emt 00:00:32]} Kf5 {[%clk 00:03:03]} {[%emt 00:00:25]} 53. Kd3
{[%clk 00:03:32]} {[%emt 00:00:42]} Bh4 {[%clk 00:02:33]} {[%emt 00:01:00]} 54.
Nf3 {[%clk 00:03:48]} {[%emt 00:00:14]} Bf2 {[%clk 00:02:48]} {[%emt 00:00:15]}
55. Ke2 {[%clk 00:03:39]} {[%emt 00:00:39]} Be3 {[%clk 00:02:48]} {[%emt
00:00:30]} 56. Kd3 {[%clk 00:04:00]} {[%emt 00:00:09]} Kg4 {[%clk 00:02:35]}
{[%emt 00:00:44]} 57. Ke4 {[%clk 00:04:05]} {[%emt 00:00:24]} Kg3 {[%clk
00:02:42]} {[%emt 00:00:23]} 58. Ng5 {[%clk 00:01:50]} {[%emt 00:02:45]} Kf2
{[%clk 00:02:06]} {[%emt 00:01:06]} 59. b5 {[%clk 00:01:57]} {[%emt 00:00:24]}
Ke2 {[%clk 00:02:01]} {[%emt 00:00:34]} 60. Nf3 {[%clk 00:02:06]} {[%emt
00:00:22]} Kf1 {[%clk 00:01:06]} {[%emt 00:01:24]} 61. Kd3 {[%clk 00:01:55]}
{[%emt 00:00:41]} Kg2 {[%clk 00:01:14]} {[%emt 00:00:22]} 62. Ke4 {[%clk
00:01:52]} {[%emt 00:00:33]} Kg3 {[%clk 00:01:18]} {[%emt 00:00:27]} 63. Ng5
{[%clk 00:01:44]} {[%emt 00:00:38]} Bc5 {[%clk 00:01:14]} {[%emt 00:00:33]} 64.
Nf3 {[%clk 00:01:52]} {[%emt 00:00:22]} Kg4 {[%clk 00:00:49]} {[%emt 00:00:55]}
65. Nh2 {[%clk 00:01:54]} {[%emt 00:00:28]} Kg3 {[%clk 00:00:57]} {[%emt
00:00:23]} 66. Nf3 {[%clk 00:02:15]} {[%emt 00:00:08]} Be3 {[%clk 00:00:48]}
{[%emt 00:00:39]} 67. Ng5 {[%clk 00:02:36]} {[%emt 00:00:09]} Kf2 {[%clk
00:01:02]} {[%emt 00:00:17]} 68. Nf3 {[%clk 00:01:35]} {[%emt 00:01:30]} Ke2
{[%clk 00:01:19]} {[%emt 00:00:13]} 69. Ng5 {[%clk 00:01:37]} {[%emt 00:00:29]}
Kd2 {[%clk 00:01:08]} {[%emt 00:00:41]} 70. Ne6 {[%clk 00:01:11]} {[%emt
00:00:55]} Kc3 {[%clk 00:01:28]} {[%emt 00:00:10]} 71. c5 {[%clk 00:00:39]}
{[%emt 00:01:02]} bxc5 {[%clk 00:00:53]} {[%emt 00:01:05]} 72. Nxc7 {[%clk
00:01:02]} {[%emt 00:00:07]} c4 {[%clk 00:00:59]} {[%emt 00:00:25]} 73. b6
{[%clk 00:00:55]} {[%emt 00:00:37]} Bxb6 {[%clk 00:00:48]} {[%emt 00:00:41]} 74.
Nb5+ {[%clk 00:01:21]} {[%emt 00:00:04]} Kb4 {[%clk 00:00:41]} {[%emt
00:00:37]} 75. Nxd6 {[%clk 00:01:44]} {[%emt 00:00:07]} Bc7 {[%clk 00:00:51]}
{[%emt 00:00:20]} 76. Nf5 {[%clk 00:01:56]} {[%emt 00:00:17]} c3 {[%clk
00:00:59]} {[%emt 00:00:22]} 77. Kd3 {[%clk 00:02:01]} {[%emt 00:00:25]} Kb3
{[%clk 00:00:58]} {[%emt 00:00:31]} 78. Nd4+ {[%clk 00:02:07]} {[%emt
00:00:24]} Kb2 {[%clk 00:01:05]} {[%emt 00:00:23]} 79. Nc2 {[%clk 00:01:18]}
{[%emt 00:01:20]} f3 {[%clk 00:01:15]} {[%emt 00:00:20]} 80. Ne3 {[%clk
00:01:25]} {[%emt 00:00:22]} Kb3 {[%clk 00:01:18]} {[%emt 00:00:28]} 81. Ke4
{[%clk 00:01:18]} {[%emt 00:00:37]} f2 {[%clk 00:00:54]} {[%emt 00:00:53]} 82.
Kf3 {[%clk 00:00:35]} {[%emt 00:01:13]} c2 {[%clk 00:00:43]} {[%emt 00:00:42]}
0-1

[Event "32nd NATO Chess Championship"]
[Site "Tartu, Estonia"]
[Date "2022.07.01"]
[Round "7.12"]
[White "Peraino, Andrew"]
[Black "Tustanowski, Mateusz"]
[Result "1/2-1/2"]
[TimeControl "90 min + 30 sec increment from move one"]
[WhiteFideId "30936187"]
[BlackFideId "1169866"]
[WhiteElo "1940"]
[BlackElo "2036"]

1. e4 {[%clk 01:27:53]} {[%emt 00:03:07]} e5 {[%clk 01:30:51]} {[%emt
00:00:08]} 2. Nf3 {[%clk 01:28:16]} {[%emt 00:00:07]} Nc6 {[%clk 01:31:13]}
{[%emt 00:00:08]} 3. Bb5 {[%clk 01:28:29]} {[%emt 00:00:19]} Bc5 {[%clk
01:31:35]} {[%emt 00:00:07]} 4. O-O {[%clk 01:24:24]} {[%emt 00:04:35]} Nd4
{[%clk 01:31:31]} {[%emt 00:00:34]} 5. Nxd4 {[%clk 01:24:28]} {[%emt 00:00:27]}
Bxd4 {[%clk 01:31:55]} {[%emt 00:00:05]} 6. c3 {[%clk 01:24:40]} {[%emt
00:00:19]} Bb6 {[%clk 01:32:19]} {[%emt 00:00:05]} 7. d4 {[%clk 01:24:44]}
{[%emt 00:00:27]} c6 {[%clk 01:32:44]} {[%emt 00:00:05]} 8. Ba4 {[%clk
01:21:13]} {[%emt 00:04:01]} d6 {[%clk 01:33:08]} {[%emt 00:00:06]} 9. Na3
{[%clk 01:18:07]} {[%emt 00:03:36]} Nf6 {[%clk 01:27:11]} {[%emt 00:06:26]} 10.
Qd3 {[%clk 01:15:46]} {[%emt 00:02:51]} O-O {[%clk 01:26:06]} {[%emt 00:01:35]}
11. Bg5 {[%clk 01:14:43]} {[%emt 00:01:33]} h6 {[%clk 01:25:18]} {[%emt
00:01:18]} 12. Bh4 {[%clk 01:13:37]} {[%emt 00:01:36]} Bg4 {[%clk 01:03:15]}
{[%emt 00:22:33]} 13. Nc4 {[%clk 01:08:15]} {[%emt 00:05:53]} Bh5 {[%clk
01:00:35]} {[%emt 00:03:09]} 14. Nxb6 {[%clk 01:00:11]} {[%emt 00:08:34]} axb6
{[%clk 01:00:05]} {[%emt 00:00:59]} 15. Bb3 {[%clk 01:00:12]} {[%emt 00:00:29]}
g5 {[%clk 00:56:18]} {[%emt 00:04:18]} 16. Bg3 {[%clk 00:59:13]} {[%emt
00:01:29]} Bg6 {[%clk 00:56:19]} {[%emt 00:00:29]} 17. f3 {[%clk 00:50:32]}
{[%emt 00:09:11]} Nh5 {[%clk 00:56:12]} {[%emt 00:00:37]} 18. dxe5 {[%clk
00:50:49]} {[%emt 00:00:13]} Nxg3 {[%clk 00:56:20]} {[%emt 00:00:22]} 19. hxg3
{[%clk 00:51:03]} {[%emt 00:00:16]} dxe5 {[%clk 00:56:46]} {[%emt 00:00:04]} 20.
Rad1 {[%clk 00:51:00]} {[%emt 00:00:33]} Qxd3 {[%clk 00:55:47]} {[%emt
00:01:29]} 21. Rxd3 {[%clk 00:51:23]} {[%emt 00:00:07]} Rfd8 {[%clk 00:56:15]}
{[%emt 00:00:02]} 22. Rfd1 {[%clk 00:51:36]} {[%emt 00:00:17]} Rxd3 {[%clk
00:56:40]} {[%emt 00:00:05]} 23. Rxd3 {[%clk 00:51:58]} {[%emt 00:00:07]} Kf8
{[%clk 00:57:08]} {[%emt 00:00:02]} 24. g4 {[%clk 00:48:52]} {[%emt 00:03:36]}
Ke7 {[%clk 00:56:49]} {[%emt 00:00:50]} 25. Kf2 {[%clk 00:49:09]} {[%emt
00:00:13]} b5 {[%clk 00:55:27]} {[%emt 00:01:52]} 26. a3 {[%clk 00:48:27]}
{[%emt 00:01:12]} f6 {[%clk 00:53:29]} {[%emt 00:02:28]} 27. Rd1 {[%clk
00:47:05]} {[%emt 00:01:51]} Rh8 {[%clk 00:53:38]} {[%emt 00:00:21]} 28. Rh1
{[%clk 00:46:39]} {[%emt 00:00:55]} h5 {[%clk 00:53:45]} {[%emt 00:00:25]} 29.
gxh5 {[%clk 00:40:28]} {[%emt 00:06:40]} Rxh5 {[%clk 00:54:10]} {[%emt
00:00:06]} 30. Rxh5 {[%clk 00:34:42]} {[%emt 00:06:16]} 1/2-1/2

[Event "32nd NATO Chess Championship"]
[Site "Tartu, Estonia"]
[Date "2022.07.01"]
[Round "7.13"]
[White "Stankowski, Aleksander"]
[Black "Nill, Oliver"]
[Result "0-1"]
[TimeControl "90 min + 30 sec increment from move one"]
[WhiteFideId "1137603"]
[BlackFideId "4652630"]
[WhiteElo "1971"]
[BlackElo "2166"]

1. e4 {[%clk 01:30:56]} {[%emt 00:00:03]} g6 {[%clk 01:30:55]} {[%emt
00:00:06]} 2. d4 {[%clk 01:31:17]} {[%emt 00:00:09]} Bg7 {[%clk 01:31:16]}
{[%emt 00:00:08]} 3. Nc3 {[%clk 01:31:37]} {[%emt 00:00:10]} d6 {[%clk
01:31:40]} {[%emt 00:00:07]} 4. f4 {[%clk 01:32:02]} {[%emt 00:00:05]} Nf6
{[%clk 01:31:30]} {[%emt 00:00:40]} 5. Nf3 {[%clk 01:32:26]} {[%emt 00:00:05]}
c5 {[%clk 01:31:51]} {[%emt 00:00:11]} 6. Bb5+ {[%clk 01:32:39]} {[%emt
00:00:16]} Bd7 {[%clk 01:32:03]} {[%emt 00:00:18]} 7. e5 {[%clk 01:32:59]}
{[%emt 00:00:09]} Ng4 {[%clk 01:31:43]} {[%emt 00:00:50]} 8. e6 {[%clk
01:33:14]} {[%emt 00:00:16]} Bxb5 {[%clk 01:29:36]} {[%emt 00:02:37]} 9. exf7+
{[%clk 01:33:33]} {[%emt 00:00:11]} Kd7 {[%clk 01:29:48]} {[%emt 00:00:18]} 10.
Nxb5 {[%clk 01:31:39]} {[%emt 00:02:24]} Qa5+ {[%clk 01:28:39]} {[%emt
00:01:38]} 11. Nc3 {[%clk 01:31:53]} {[%emt 00:00:17]} cxd4 {[%clk 01:24:25]}
{[%emt 00:04:44]} 12. Nxd4 {[%clk 01:30:55]} {[%emt 00:01:28]} h5 {[%clk
01:22:21]} {[%emt 00:02:34]} 13. h3 {[%clk 01:16:47]} {[%emt 00:14:38]} Nc6
{[%clk 01:20:08]} {[%emt 00:02:43]} 14. Nb3 {[%clk 01:10:38]} {[%emt 00:06:38]}
Bxc3+ {[%clk 01:18:49]} {[%emt 00:01:49]} 15. bxc3 {[%clk 01:10:57]} {[%emt
00:00:12]} Qxc3+ {[%clk 01:19:04]} {[%emt 00:00:14]} 16. Bd2 {[%clk 01:10:51]}
{[%emt 00:00:35]} Qg3+ {[%clk 01:19:05]} {[%emt 00:00:31]} 17. Ke2 {[%clk
01:10:33]} {[%emt 00:00:48]} Qxg2+ {[%clk 01:19:21]} {[%emt 00:00:14]} 18. Kd3
{[%clk 01:09:51]} {[%emt 00:01:12]} Nf2+ {[%clk 01:19:42]} {[%emt 00:00:09]} 19.
Kc3 {[%clk 01:08:22]} {[%emt 00:01:58]} Nxd1+ {[%clk 01:18:20]} {[%emt
00:01:53]} 20. Raxd1 {[%clk 01:08:42]} {[%emt 00:00:10]} Rac8 {[%clk 01:15:48]}
{[%emt 00:03:01]} 21. Kb2 {[%clk 01:08:58]} {[%emt 00:00:14]} Rhf8 {[%clk
01:11:53]} {[%emt 00:04:25]} 22. Rhg1 {[%clk 01:07:28]} {[%emt 00:02:00]} Qxh3
{[%clk 01:10:19]} {[%emt 00:02:05]} 23. Rxg6 {[%clk 01:07:33]} {[%emt
00:00:25]} Rxf7 {[%clk 01:08:48]} {[%emt 00:02:00]} 24. Re1 {[%clk 01:06:04]}
{[%emt 00:01:59]} a5 {[%clk 01:04:27]} {[%emt 00:04:52]} 25. Re3 {[%clk
01:04:57]} {[%emt 00:01:37]} Qh2 {[%clk 01:03:50]} {[%emt 00:01:07]} 26. Rge6
{[%clk 01:04:30]} {[%emt 00:00:56]} a4 {[%clk 01:01:20]} {[%emt 00:03:01]} 27.
Re2 {[%clk 01:03:22]} {[%emt 00:01:37]} Qh3 {[%clk 01:00:40]} {[%emt 00:01:10]}
28. R6e3 {[%clk 01:02:43]} {[%emt 00:01:09]} Qf5 {[%clk 01:00:34]} {[%emt
00:00:36]} 29. Nc1 {[%clk 01:02:28]} {[%emt 00:00:46]} Qb5+ {[%clk 00:58:35]}
{[%emt 00:02:28]} 30. Ka1 {[%clk 01:01:32]} {[%emt 00:01:27]} Nd4 {[%clk
00:58:32]} {[%emt 00:00:33]} 0-1

[Event "32nd NATO Chess Championship"]
[Site "Tartu, Estonia"]
[Date "2022.07.01"]
[Round "7.14"]
[White "Aagaard, Gert"]
[Black "Mouroutis, Konstantinos"]
[Result "1/2-1/2"]
[TimeControl "90 min + 30 sec increment from move one"]
[WhiteFideId "1427024"]
[BlackFideId "4204689"]
[WhiteElo "1979"]
[BlackElo "2133"]

1. d4 {[%clk 01:30:56]} {[%emt 00:00:04]} Nf6 {[%clk 01:30:52]} {[%emt
00:00:09]} 2. Nf3 {[%clk 01:30:51]} {[%emt 00:00:35]} e6 {[%clk 01:31:14]}
{[%emt 00:00:08]} 3. Bg5 {[%clk 01:30:57]} {[%emt 00:00:24]} c5 {[%clk
01:30:46]} {[%emt 00:00:57]} 4. c3 {[%clk 01:27:44]} {[%emt 00:03:44]} Qb6
{[%clk 01:30:45]} {[%emt 00:00:31]} 5. Bxf6 {[%clk 01:21:45]} {[%emt 00:06:29]}
gxf6 {[%clk 01:27:30]} {[%emt 00:03:43]} 6. Qc2 {[%clk 01:21:54]} {[%emt
00:00:23]} cxd4 {[%clk 01:27:19]} {[%emt 00:00:41]} 7. cxd4 {[%clk 01:22:13]}
{[%emt 00:00:11]} Nc6 {[%clk 01:27:04]} {[%emt 00:00:44]} 8. e3 {[%clk
01:22:16]} {[%emt 00:00:27]} d5 {[%clk 01:23:01]} {[%emt 00:04:33]} 9. a3
{[%clk 01:17:36]} {[%emt 00:05:11]} Bd7 {[%clk 01:22:27]} {[%emt 00:01:03]} 10.
Nbd2 {[%clk 01:15:28]} {[%emt 00:02:38]} Rc8 {[%clk 01:22:20]} {[%emt
00:00:37]} 11. Qb3 {[%clk 01:15:19]} {[%emt 00:00:40]} Na5 {[%clk 01:13:35]}
{[%emt 00:09:15]} 12. Qxb6 {[%clk 01:15:09]} {[%emt 00:00:40]} axb6 {[%clk
01:14:03]} {[%emt 00:00:01]} 13. Bd3 {[%clk 01:15:02]} {[%emt 00:00:37]} Nc4
{[%clk 01:12:27]} {[%emt 00:02:07]} 14. Bxc4 {[%clk 00:51:08]} {[%emt
00:24:24]} dxc4 {[%clk 01:12:28]} {[%emt 00:00:28]} 15. Ne4 {[%clk 00:50:09]}
{[%emt 00:01:29]} Be7 {[%clk 01:12:20]} {[%emt 00:00:38]} 16. Ke2 {[%clk
00:49:57]} {[%emt 00:00:43]} Rg8 {[%clk 01:05:20]} {[%emt 00:07:30]} 17. g3
{[%clk 00:48:07]} {[%emt 00:02:20]} b5 {[%clk 01:03:12]} {[%emt 00:02:38]} 18.
Rhd1 {[%clk 00:45:37]} {[%emt 00:02:59]} f5 {[%clk 00:53:32]} {[%emt 00:10:11]}
19. Nc3 {[%clk 00:45:55]} {[%emt 00:00:12]} f6 {[%clk 00:53:39]} {[%emt
00:00:23]} 20. Ne1 {[%clk 00:37:30]} {[%emt 00:08:54]} Kf7 {[%clk 00:50:39]}
{[%emt 00:03:30]} 21. Ng2 {[%clk 00:37:30]} {[%emt 00:00:31]} Bd6 {[%clk
00:47:55]} {[%emt 00:03:13]} 22. Ne1 {[%clk 00:37:13]} {[%emt 00:00:48]} Ra8
{[%clk 00:44:58]} {[%emt 00:03:26]} 23. Nc2 {[%clk 00:34:09]} {[%emt 00:03:34]}
Ra6 {[%clk 00:42:54]} {[%emt 00:02:36]} 1/2-1/2

[Event "32nd NATO Chess Championship"]
[Site "Tartu, Estonia"]
[Date "2022.07.01"]
[Round "7.15"]
[White "Ivbulis, Martins"]
[Black "Keough, Robert"]
[Result "0-1"]
[TimeControl "90 min + 30 sec increment from move one"]
[WhiteFideId "11603496"]
[BlackFideId "410667"]
[WhiteElo "1815"]
[BlackElo "2074"]

1. d4 {[%clk 01:30:56]} {[%emt 00:00:03]} Nf6 {[%clk 01:30:55]} {[%emt
00:00:05]} 2. Nc3 {[%clk 01:31:19]} {[%emt 00:00:07]} d5 {[%clk 01:30:02]}
{[%emt 00:01:24]} 3. Bf4 {[%clk 01:31:35]} {[%emt 00:00:14]} e6 {[%clk
01:28:24]} {[%emt 00:02:07]} 4. Nb5 {[%clk 01:31:48]} {[%emt 00:00:17]} Na6
{[%clk 01:24:03]} {[%emt 00:04:51]} 5. a3 {[%clk 01:32:00]} {[%emt 00:00:18]}
Be7 {[%clk 01:07:57]} {[%emt 00:16:35]} 6. e3 {[%clk 01:32:13]} {[%emt
00:00:18]} O-O {[%clk 01:06:32]} {[%emt 00:01:56]} 7. Bd3 {[%clk 01:29:55]}
{[%emt 00:02:48]} c6 {[%clk 01:06:30]} {[%emt 00:00:33]} 8. Nc3 {[%clk
01:30:16]} {[%emt 00:00:08]} c5 {[%clk 01:06:51]} {[%emt 00:00:09]} 9. Nf3
{[%clk 01:24:15]} {[%emt 00:06:30]} c4 {[%clk 01:03:46]} {[%emt 00:03:36]} 10.
Be2 {[%clk 01:23:51]} {[%emt 00:00:53]} Nh5 {[%clk 01:03:35]} {[%emt 00:00:41]}
11. Be5 {[%clk 01:22:07]} {[%emt 00:02:15]} f6 {[%clk 01:01:47]} {[%emt
00:02:18]} 12. Bg3 {[%clk 01:21:49]} {[%emt 00:00:47]} Nxg3 {[%clk 01:01:43]}
{[%emt 00:00:35]} 13. hxg3 {[%clk 01:22:10]} {[%emt 00:00:09]} Bd7 {[%clk
01:02:07]} {[%emt 00:00:06]} 14. e4 {[%clk 01:12:57]} {[%emt 00:09:43]} Be8
{[%clk 00:33:23]} {[%emt 00:29:14]} 15. exd5 {[%clk 01:10:49]} {[%emt
00:02:38]} exd5 {[%clk 00:33:46]} {[%emt 00:00:07]} 16. O-O {[%clk 01:09:36]}
{[%emt 00:01:42]} b5 {[%clk 00:32:48]} {[%emt 00:01:28]} 17. Nd2 {[%clk
01:02:23]} {[%emt 00:07:44]} Nc7 {[%clk 00:33:08]} {[%emt 00:00:10]} 18. Re1
{[%clk 01:02:33]} {[%emt 00:00:19]} Bg6 {[%clk 00:33:27]} {[%emt 00:00:12]} 19.
Bf3 {[%clk 01:02:22]} {[%emt 00:00:40]} Rb8 {[%clk 00:32:17]} {[%emt 00:01:40]}
20. Nf1 {[%clk 01:01:54]} {[%emt 00:00:59]} Bf7 {[%clk 00:30:00]} {[%emt
00:02:47]} 21. Ne3 {[%clk 00:58:57]} {[%emt 00:03:27]} Re8 {[%clk 00:30:11]}
{[%emt 00:00:19]} 22. Qd2 {[%clk 00:56:34]} {[%emt 00:02:52]} Bf8 {[%clk
00:29:59]} {[%emt 00:00:42]} 23. Nf5 {[%clk 00:52:09]} {[%emt 00:04:55]} Qd7
{[%clk 00:30:10]} {[%emt 00:00:20]} 24. g4 {[%clk 00:52:08]} {[%emt 00:00:30]}
a5 {[%clk 00:26:47]} {[%emt 00:03:53]} 25. Ne2 {[%clk 00:51:12]} {[%emt
00:01:26]} Ra8 {[%clk 00:24:43]} {[%emt 00:02:34]} 26. Nf4 {[%clk 00:50:18]}
{[%emt 00:01:24]} Rxe1+ {[%clk 00:24:27]} {[%emt 00:00:47]} 27. Rxe1 {[%clk
00:50:23]} {[%emt 00:00:24]} b4 {[%clk 00:24:35]} {[%emt 00:00:23]} 28. axb4
{[%clk 00:49:36]} {[%emt 00:01:17]} axb4 {[%clk 00:24:59]} {[%emt 00:00:06]} 29.
b3 {[%clk 00:48:29]} {[%emt 00:01:36]} cxb3 {[%clk 00:23:54]} {[%emt 00:01:35]}
30. cxb3 {[%clk 00:48:50]} {[%emt 00:00:10]} Ra3 {[%clk 00:24:14]} {[%emt
00:00:10]} 31. Qd3 {[%clk 00:44:21]} {[%emt 00:04:59]} Nb5 {[%clk 00:21:27]}
{[%emt 00:03:17]} 32. Nh5 {[%clk 00:36:18]} {[%emt 00:08:33]} Bxh5 {[%clk
00:17:03]} {[%emt 00:04:53]} 33. gxh5 {[%clk 00:36:40]} {[%emt 00:00:08]} Nc3
{[%clk 00:17:15]} {[%emt 00:00:19]} 34. Ne3 {[%clk 00:36:18]} {[%emt 00:00:51]}
Qf7 {[%clk 00:13:00]} {[%emt 00:04:45]} 35. Bg4 {[%clk 00:34:42]} {[%emt
00:02:07]} Kh8 {[%clk 00:12:30]} {[%emt 00:00:59]} 36. Bf5 {[%clk 00:29:46]}
{[%emt 00:05:26]} Qxh5 {[%clk 00:11:37]} {[%emt 00:01:22]} 37. g4 {[%clk
00:27:46]} {[%emt 00:02:31]} Qh3 {[%clk 00:09:26]} {[%emt 00:02:40]} 38. g5
{[%clk 00:22:51]} {[%emt 00:05:26]} Qh4 {[%clk 00:08:13]} {[%emt 00:01:43]} 39.
gxf6 {[%clk 00:22:22]} {[%emt 00:00:58]} gxf6 {[%clk 00:06:15]} {[%emt
00:02:29]} 40. Kg2 {[%clk 00:16:18]} {[%emt 00:06:34]} Ne4 {[%clk 00:05:24]}
{[%emt 00:01:21]} 41. Qc2 {[%clk 00:16:46]} {[%emt 00:00:02]} Ra7 {[%clk
00:04:29]} {[%emt 00:01:25]} 42. Nxd5 {[%clk 00:09:54]} {[%emt 00:07:22]} Qg5+
{[%clk 00:02:40]} {[%emt 00:02:19]} 43. Kf1 {[%clk 00:09:48]} {[%emt 00:00:36]}
Qxf5 {[%clk 00:02:38]} {[%emt 00:00:33]} 44. Qxe4 {[%clk 00:10:13]} {[%emt
00:00:05]} Qh3+ {[%clk 00:02:53]} {[%emt 00:00:14]} 45. Ke2 {[%clk 00:08:56]}
{[%emt 00:01:47]} Ra2+ {[%clk 00:03:09]} {[%emt 00:00:14]} 46. Kd1 {[%clk
00:09:01]} {[%emt 00:00:25]} Qxb3+ {[%clk 00:03:30]} {[%emt 00:00:09]} 47. Kc1
{[%clk 00:09:28]} {[%emt 00:00:03]} Qb2+ {[%clk 00:03:56]} {[%emt 00:00:04]} 48.
Kd1 {[%clk 00:09:56]} {[%emt 00:00:02]} Qd2# {[%clk 00:04:17]} {[%emt
00:00:09]} 0-1